bitfinex/quotes_SOLUSD_20250915
["timestamp","ask_amount","ask_price","bid_price","bid_amount"]
[1757900420265,0.03,241.99,241.97,4.13271958]
[1757900420563,0.03,241.99,241.98,1.65724111]
[1757900421167,1.50894498,241.99,241.94,0.06]
[1757900421471,1.47894498,241.98,241.95,1.65737844]
[1757900422076,1.47894498,241.97,241.94,0.06]
[1757900422277,1.47894498,241.96,241.94,0.06]
[1757900422461,1.47894498,241.95,241.94,0.06]
[1757900422804,28.11894498,241.95,241.94,0.06]
[1757900422968,27.47894498,241.95,241.94,0.06]
[1757900423173,1.47894498,241.97,241.94,0.06]
[1757900423373,4.25800295,241.98,241.95,4.81308534]
[1757900423572,1.50894498,241.99,241.95,4.81308534]
[1757900423897,2.80905797,241.99,241.96,0.68]
[1757900424098,0.03,241.99,241.97,0.68]
[1757900424386,0.03,241.99,241.95,4.13308534]
[1757900424387,0.03,241.99,241.95,14.46579871]
[1757900424565,0.03,241.99,241.97,0.68]
[1757900425579,1.50894498,241.99,241.94,0.74]
[1757900425774,1.50894498,241.99,241.94,0.06]
[1757900425978,1.47894498,241.98,241.94,0.74]
[1757900426175,1.47894498,241.98,241.95,0.68]
[1757900426372,1.47894498,241.96,241.94,0.06]
[1757900426699,1.47894498,241.95,241.94,0.06]
[1757900427469,1.47894498,241.97,241.94,0.74]
[1757900427694,26.0,241.98,241.94,0.74]
[1757900427695,2.78179317,241.96,241.94,0.74]
[1757900427872,27.47894498,241.98,241.94,0.74]
[1757900428075,2.78179236,241.97,241.94,4.19320722]
[1757900428274,4.26073734,241.96,241.94,4.19320722]
[1757900428500,1.47894498,241.95,241.94,0.06]
[1757900428695,4.26208718,241.95,241.94,0.06]
[1757900428903,4.26208718,241.95,241.94,4.19325617]
[1757900429618,2.7831422,241.95,241.94,4.19325617]
[1757900430207,4.26208718,241.95,241.94,0.06]
[1757900430396,30.26208718,241.95,241.94,0.06]
[1757900430880,4.26208718,241.95,241.94,0.06]
[1757900431592,18.49768119,241.95,241.94,0.06]
[1757900431777,18.49768119,241.95,241.91,0.02]
[1757900431778,39.59559401,241.92,241.91,0.02]
[1757900432090,39.59559401,241.92,241.89,0.06]
[1757900432091,13.59559401,241.91,241.89,0.06]
[1757900432283,13.59559401,241.85,241.78,4.13599139]
[1757900432473,1.47894498,241.81,241.78,4.13599139]
[1757900432673,1.47894498,241.81,241.79,0.68]
[1757900433176,1.47894498,241.82,241.79,0.68]
[1757900433484,1.47894498,241.8,241.76,4.87617083]
[1757900433676,42.37665272,241.83,241.77,0.68]
[1757900433875,1.47894498,241.85,241.77,2.15894498]
[1757900434081,0.54,241.89,241.82,1.47894498]
[1757900434082,2.78067046,241.87,241.82,1.47894498]
[1757900434392,2.78038492,241.88,241.83,0.68]
[1757900434593,1.47894498,241.89,241.84,4.13496526]
[1757900434791,1.47894498,241.89,241.85,0.68]
[1757900434981,1.47894498,241.89,241.84,4.13496526]
[1757900435301,1.47894498,241.87,241.82,4.1351712]
[1757900435599,1.47894498,241.87,241.82,4.8151712]
[1757900435975,1.47894498,241.87,241.82,4.1351712]
[1757900436176,1.47894498,241.93,241.86,1.47894498]
[1757900436392,2.77907835,241.92,241.87,2.15894498]
[1757900436592,1.47894498,241.93,241.89,4.13411054]
[1757900436799,2.77906839,241.92,241.89,4.81411054]
[1757900437100,1.47894498,241.9,241.83,11.81662983]
[1757900437283,1.47894498,241.88,241.83,11.01768485]
[1757900437484,1.47894498,241.88,241.84,4.13496526]
[1757900437799,1.47894498,241.88,241.81,0.68]
[1757900437800,1.47894498,241.86,241.81,0.68]
[1757900438184,1.47894498,241.83,241.79,4.13582033]
[1757900438382,1.47894498,241.81,241.77,4.13607076]
[1757900438602,1.47894498,241.8,241.77,4.84607076]
[1757900438898,1.47894498,241.81,241.78,0.71]
[1757900439398,1.47894498,241.8,241.77,4.13607076]
[1757900439794,1.47894498,241.8,241.77,4.84607076]
[1757900441185,39.59559401,241.77,241.76,0.06]
[1757900441496,43.85153972,241.77,241.76,0.06]
[1757900441705,44.39153972,241.77,241.76,0.06]
[1757900442917,43.85153972,241.77,241.76,0.06]
[1757900443120,2.77700073,241.77,241.76,0.06]
[1757900443284,27.47894498,241.78,241.76,0.77]
[1757900443593,26.0,241.79,241.76,0.77]
[1757900443594,27.47894498,241.81,241.76,4.90625289]
[1757900443802,1.47894498,241.8,241.76,4.90625289]
[1757900444001,1.47894498,241.8,241.77,0.71]
[1757900444218,27.47894498,241.81,241.78,0.71]
[1757900444382,26.0,241.81,241.78,0.71]
[1757900444583,26.0,241.81,241.79,0.71]
[1757900444784,26.0,241.81,241.76,14.53708677]
[1757900445116,26.0,241.81,241.78,4.13599139]
[1757900445286,1.47894498,241.84,241.78,14.47596988]
[1757900445488,1.47894498,241.85,241.79,2.18894498]
[1757900445712,13.59559401,241.86,241.79,2.18894498]
[1757900445713,13.59559401,241.86,241.79,0.71]
[1757900446008,1.47894498,241.82,241.78,4.13599139]
[1757900446209,1.47894498,241.82,241.79,0.71]
[1757900446523,1.47894498,241.84,241.8,0.71]
[1757900446822,1.47894498,241.86,241.81,0.71]
[1757900447026,27.47894498,241.85,241.81,0.71]
[1757900447309,27.47894498,241.85,241.82,4.13530725]
[1757900447484,1.47894498,241.83,241.79,4.1356837]
[1757900447692,1.47894498,241.83,241.79,4.8456837]
[1757900447913,1.47894498,241.83,241.8,0.71]
[1757900448090,1.47894498,241.84,241.81,0.71]
[1757900448422,1.47894498,241.84,241.79,14.47523454]
[1757900448587,1.47894498,241.84,241.8,0.71]
[1757900449315,1.47894498,241.82,241.8,4.84560021]
[1757900449723,1.47894498,241.83,241.8,4.84560021]
[1757900450602,1.47894498,241.83,241.78,4.13599139]
[1757900450787,1.47894498,241.82,241.78,4.84599139]
[1757900450992,1.47894498,241.82,241.76,0.06]
[1757900450993,1.47894498,241.79,241.76,0.06]
[1757900451191,1.47894498,241.79,241.77,4.1360852]
[1757900451415,1.47894498,241.8,241.77,4.1360852]
[1757900452212,1.47894498,241.79,241.77,4.1360852]
[1757900452816,1.47894498,241.78,241.76,0.06]
[1757900452989,1.47894498,241.77,241.76,0.06]
[1757900453392,28.01894498,241.77,241.76,0.06]
[1757900453710,27.47894498,241.77,241.76,0.06]
[1757900454816,41.07453899,241.77,241.76,0.06]
[1757900455191,1.47894498,241.79,241.76,4.88619796]
[1757900456200,26.0,241.8,241.76,4.88619796]
[1757900456411,26.0,241.8,241.77,0.69]
[1757900456607,1.47894498,241.81,241.78,4.13599139]
[1757900456813,1.47894498,241.82,241.79,0.69]
[1757900457119,27.47894498,241.82,241.78,4.13599139]
[1757900457297,26.0,241.82,241.78,4.82599139]
[1757900457501,1.47894498,241.81,241.78,4.13599139]
[1757900457720,1.47894498,241.81,241.78,4.82599139]
[1757900457923,1.47894498,241.81,241.78,4.13599139]
[1757900458220,1.47894498,241.81,241.76,4.88617997]
[1757900458395,1.47894498,241.8,241.76,4.88617997]
[1757900458599,1.47894498,241.8,241.77,0.69]
[1757900458815,1.47894498,241.8,241.77,4.82615618]
[1757900459522,1.47894498,241.8,241.77,4.13615618]
[1757900459720,1.47894498,241.79,241.77,4.13615618]
[1757900460710,27.47894498,241.78,241.76,0.06]
[1757900460912,1.47894498,241.77,241.76,0.06]
[1757900462723,15.61453899,241.77,241.76,0.06]
[1757900462901,48.25453899,241.77,241.76,0.06]
[1757900463101,52.39070145,241.77,241.76,0.06]
[1757900463310,48.25453899,241.77,241.76,0.06]
[1757900463497,14.13559401,241.77,241.76,0.06]
[1757900463701,47.71453899,241.77,241.76,0.06]
[1757900463901,15.07453899,241.77,241.76,0.06]
[1757900464319,41.07453899,241.77,241.76,0.06]
[1757900464725,39.59559401,241.77,241.76,0.06]
[1757900464911,26.0,241.77,241.76,4.88633355]
[1757900465317,26.0,241.77,241.76,0.06]
[1757900465525,27.47894498,241.77,241.76,0.06]
[1757900467516,27.47894498,241.77,241.76,4.19633355]
[1757900467712,27.47894498,241.77,241.76,0.06]
[1757900467905,41.07453899,241.77,241.76,0.06]
[1757900468317,1.47894498,241.83,241.76,6.36527853]
[1757900468628,13.59559401,241.86,241.77,2.14894498]
[1757900468928,1.47894498,241.86,241.8,1.47894498]
[1757900469104,1.47894498,241.85,241.81,0.67]
[1757900469303,17.8460605,241.86,241.83,4.13513625]
[1757900469628,0.03,241.89,241.83,4.13513625]
[1757900469629,0.03,241.89,241.84,0.67]
[1757900469831,0.03,241.89,241.84,2.14894498]
[1757900470132,0.03,241.89,241.85,1.47894498]
[1757900470309,0.03,241.89,241.85,2.14894498]
[1757900470508,0.03,241.89,241.86,0.67]
[1757900470709,1.47894498,241.87,241.83,4.13513625]
[1757900470928,1.47894498,241.84,241.83,4.13513625]
[1757900471141,1.47894498,241.85,241.83,4.80513625]
[1757900471314,1.47894498,241.85,241.83,4.13513625]
[1757900471635,1.47894498,241.85,241.84,0.67]
[1757900471837,1.47894498,241.85,241.83,4.80513625]
[1757900471838,0.94726127,241.85,241.83,4.80513625]
[1757900472920,2.77323579,241.88,241.83,4.80513625]
[1757900473120,0.94726127,241.86,241.84,0.67]
[1757900473319,0.94726127,241.85,241.83,4.13513625]
[1757900473616,0.94726127,241.84,241.83,4.13513625]
[1757900473824,5.24049977,241.84,241.78,4.80599139]
[1757900474135,2.46726398,241.81,241.78,4.80599139]
[1757900474321,2.46726398,241.81,241.79,0.67]
[1757900474522,2.46726398,241.81,241.78,4.13599139]
[1757900474724,2.46726398,241.81,241.78,4.80599139]
[1757900474918,2.46726398,241.81,241.8,4.13564929]
[1757900475238,2.46726398,241.81,241.78,4.13584084]
[1757900475418,2.46726398,241.8,241.78,4.80584084]
[1757900475827,2.78082157,241.81,241.78,4.80584084]
[1757900476027,26.0,241.83,241.79,0.67]
[1757900476214,2.46726398,241.81,241.79,0.67]
[1757900476417,2.46726398,241.8,241.78,4.13584084]
[1757900476616,2.46726398,241.8,241.78,4.80584084]
[1757900477340,2.46726398,241.81,241.79,0.67]
[1757900477536,2.78251829,241.8,241.78,4.13584084]
[1757900477723,2.46726398,241.8,241.76,4.19618029]
[1757900477938,2.46726398,241.79,241.76,4.19618029]
[1757900478436,2.46726398,241.79,241.77,0.67]
[1757900478944,5.25008571,241.78,241.76,4.19618029]
[1757900479159,2.46726398,241.77,241.76,0.06]
[1757900479321,18.84636958,241.77,241.76,0.06]
[1757900480075,19.38636958,241.77,241.76,0.06]
[1757900480545,18.84636958,241.77,241.76,0.06]
[1757900486549,29.4952879,241.77,241.76,0.06]
[1757900486749,39.59559401,241.75,241.74,0.06]
[1757900486959,51.46636958,241.75,241.74,0.06]
[1757900487160,52.00636958,241.75,241.74,0.06]
[1757900487850,56.14287423,241.75,241.74,0.06]
[1757900488155,62.11563009,241.75,241.74,0.06]
[1757900488681,19.56834987,241.74,241.72,0.06]
[1757900488848,18.84636958,241.73,241.72,0.06]
[1757900489050,25.35912544,241.73,241.72,0.06]
[1757900489771,57.99912544,241.73,241.72,0.06]
[1757900490152,65.61392467,241.73,241.72,0.06]
[1757900491751,77.85089118,241.73,241.72,0.06]
[1757900493060,77.85089118,241.73,241.71,0.06]
[1757900493061,19.56834987,241.72,241.71,0.06]
[1757900493262,26.0,241.66,241.62,0.06]
[1757900493466,16.06285799,241.63,241.62,0.06]
[1757900493654,48.70285799,241.63,241.62,0.06]
[1757900493981,57.45588514,241.63,241.62,0.06]
[1757900494162,57.99588514,241.63,241.62,0.06]
[1757900494358,65.49050489,241.63,241.62,0.06]
[1757900494559,64.95050489,241.63,241.62,0.06]
[1757900495065,60.81194594,241.63,241.62,0.06]
[1757900495373,58.34468196,241.63,241.62,0.06]
[1757900495552,60.81194594,241.63,241.62,0.06]
[1757900495753,59.29418136,241.63,241.62,0.06]
[1757900496265,59.83418136,241.63,241.62,0.06]
[1757900497387,27.19418136,241.63,241.62,0.06]
[1757900497553,59.83418136,241.63,241.62,0.06]
[1757900498272,17.73432424,241.62,241.61,0.06]
[1757900498592,27.43685079,241.62,241.61,0.06]
[1757900498756,27.97685079,241.62,241.59,0.06]
[1757900499079,50.5053647,241.61,241.59,0.06]
[1757900499259,56.47812056,241.61,241.59,0.06]
[1757900499453,55.93812056,241.61,241.59,0.06]
[1757900499866,56.47812056,241.61,241.59,0.06]
[1757900500975,23.29812056,241.61,241.59,0.06]
[1757900501283,39.59559401,241.57,241.53,0.2]
[1757900501585,89.86456349,241.57,241.53,0.2]
[1757900501767,95.06927536,241.57,241.53,0.2]
[1757900502583,62.42927536,241.57,241.53,0.2]
[1757900502880,95.06927536,241.57,241.53,0.2]
[1757900503681,95.60927536,241.57,241.53,0.2]
[1757900504181,5.97275586,241.56,241.53,0.2]
[1757900504473,40.54509341,241.54,241.53,0.2]
[1757900504683,46.51784927,241.54,241.53,0.2]
[1757900505061,79.15784927,241.54,241.53,0.2]
[1757900505260,78.20834987,241.54,241.53,0.2]
[1757900505569,83.29795028,241.54,241.53,0.2]
[1757900506168,83.83795028,241.54,241.53,0.2]
[1757900506983,63.04266215,241.54,241.53,0.2]
[1757900507278,62.50266215,241.54,241.53,0.2]
[1757900507862,62.50266215,241.54,241.51,0.2]
[1757900507863,39.59559401,241.52,241.51,0.2]
[1757900508059,79.15784927,241.52,241.51,0.2]
[1757900508885,20.51784927,241.52,241.51,0.92]
[1757900509060,53.15784927,241.52,241.51,0.92]
[1757900509263,53.15784927,241.52,241.51,0.2]
[1757900509475,57.29829312,241.52,241.51,0.92]
[1757900509979,50.65829312,241.52,241.51,0.92]
[1757900510170,57.31829312,241.52,241.51,0.92]
[1757900510367,50.65829312,241.52,241.51,0.92]
[1757900510569,57.31829312,241.52,241.51,0.92]
[1757900510773,57.31829312,241.52,241.51,0.2]
[1757900513269,53.17784927,241.52,241.51,0.92]
[1757900514081,53.17784927,241.52,241.51,0.2]
[1757900515467,46.51784927,241.52,241.51,0.92]
[1757900515677,53.17784927,241.52,241.51,0.2]
[1757900515875,57.31829312,241.52,241.51,0.2]
[1757900517971,46.51784927,241.52,241.51,0.92]
[1757900518187,57.31829312,241.52,241.51,0.92]
[1757900520285,53.17784927,241.52,241.51,0.92]
[1757900521068,57.31829312,241.52,241.51,0.92]
[1757900521384,57.31829312,241.52,241.51,0.2]
[1757900522476,39.59559401,241.49,241.48,0.06]
[1757900522684,76.38414625,241.49,241.48,0.06]
[1757900522888,79.17784927,241.49,241.48,0.06]
[1757900523283,79.17784927,241.49,241.48,0.78]
[1757900523677,79.17784927,241.49,241.48,0.06]
[1757900523989,83.31880748,241.49,241.48,0.06]
[1757900524371,19.56834987,241.49,241.48,0.78]
[1757900524573,13.59559401,241.49,241.48,4.9211297]
[1757900524767,13.59559401,241.49,241.48,0.78]
[1757900524982,14.54509341,241.49,241.48,0.78]
[1757900525191,40.54509341,241.49,241.48,0.78]
[1757900525786,44.68605162,241.49,241.48,0.78]
[1757900525985,77.34605162,241.49,241.48,0.78]
[1757900527106,51.34605162,241.49,241.48,0.06]
[1757900527597,57.85880748,241.49,241.48,0.06]
[1757900527988,60.62577484,241.49,241.48,0.06]
[1757900528374,60.62681899,241.49,241.48,0.06]
[1757900528601,65.83153086,241.49,241.48,0.06]
[1757900528898,24.77306174,241.48,241.46,0.06]
[1757900529102,14.54509341,241.4,241.37,0.65]
[1757900529287,14.54509341,241.38,241.37,0.65]
[1757900529603,13.59559401,241.37,241.35,0.2]
[1757900529806,0.9494994,241.36,241.35,0.2]
[1757900530569,32.64,241.4,241.35,4.99336026]
[1757900530570,0.9494994,241.38,241.35,4.99336026]
[1757900530802,0.9494994,241.38,241.36,0.65]
[1757900531582,0.9494994,241.37,241.36,0.65]
[1757900531905,13.59559401,241.4,241.36,0.65]
[1757900532213,1.48604766,241.37,241.35,0.2]
[1757900532381,1.48604766,241.36,241.35,0.2]
[1757900532584,17.7381553,241.4,241.35,0.2]
[1757900532881,50.3981553,241.4,241.36,0.65]
[1757900533100,39.59559401,241.38,241.37,0.65]
[1757900533883,41.08164167,241.38,241.37,0.65]
[1757900534395,13.59559401,241.37,241.35,0.2]
[1757900534581,1.48604766,241.36,241.35,0.2]
[1757900534781,13.59559401,241.37,241.35,0.2]
[1757900534982,1.48604766,241.36,241.35,4.34336026]
[1757900535298,15.08164167,241.37,241.35,4.34336026]
[1757900535611,15.08164167,241.37,241.36,0.65]
[1757900536398,15.08164167,241.37,241.36,4.79318859]
[1757900536603,13.59559401,241.37,241.36,4.79318859]
[1757900536783,26.0,241.45,241.36,4.79318859]
[1757900536985,26.0,241.38,241.37,0.65]
[1757900537792,1.48604766,241.39,241.37,4.79301694]
[1757900537990,41.08164167,241.39,241.38,0.65]
[1757900538923,39.59559401,241.39,241.38,0.65]
[1757900539092,60.14604766,241.42,241.38,0.65]
[1757900539290,27.48604766,241.42,241.38,0.65]
[1757900539679,1.48604766,241.41,241.38,0.65]
[1757900539880,1.48604766,241.41,241.37,4.14299829]
[1757900540113,15.08164167,241.39,241.38,0.65]
[1757900540496,15.08164167,241.39,241.35,4.34322156]
[1757900540816,1.48604766,241.37,241.36,0.65]
[1757900541701,26.0,241.38,241.36,0.65]
[1757900542004,26.0,241.38,241.36,4.79311178]
[1757900542179,39.59559401,241.38,241.37,0.65]
[1757900542380,41.08164167,241.38,241.37,0.65]
[1757900543017,41.08164167,241.38,241.35,0.2]
[1757900543201,1.48604766,241.37,241.36,0.65]
[1757900544704,15.08164167,241.37,241.35,0.2]
[1757900544894,17.86487627,241.36,241.35,0.2]
[1757900545690,15.08164167,241.36,241.35,0.2]
[1757900545886,17.86487627,241.36,241.35,0.2]
[1757900546185,44.32677962,241.36,241.35,0.85]
[1757900546398,42.84073196,241.36,241.35,0.85]
[1757900546693,44.32677962,241.36,241.35,0.85]
[1757900547104,44.32677962,241.36,241.35,0.2]
[1757900547429,47.11112666,241.36,241.35,0.2]
[1757900551019,79.75112666,241.36,241.35,0.2]
[1757900552223,47.11112666,241.36,241.35,0.2]
[1757900553910,25.79431525,241.36,241.35,0.2]
[1757900554240,31.22707111,241.36,241.35,0.2]
[1757900554602,31.76707111,241.36,241.35,0.2]
[1757900555101,31.22707111,241.36,241.35,0.2]
[1757900555297,31.76707111,241.36,241.35,0.2]
[1757900557236,36.64876875,241.36,241.35,0.2]
[1757900558432,38.13481641,241.36,241.35,0.2]
[1757900558721,41.59483079,241.36,241.35,0.2]
[1757900560430,39.56878313,241.36,241.35,0.2]
[1757900560635,68.74876875,241.36,241.35,0.2]
[1757900561931,81.06165371,241.36,241.35,0.2]
[1757900563435,81.60165371,241.36,241.35,0.2]
[1757900563651,86.54771575,241.36,241.35,0.2]
[1757900563824,84.52166809,241.36,241.35,0.2]
[1757900564445,85.06166809,241.36,241.35,0.2]
[1757900564944,48.42165371,241.36,241.35,0.2]
[1757900565151,81.06165371,241.36,241.35,0.2]
[1757900566039,48.42165371,241.36,241.35,0.2]
[1757900566225,81.06165371,241.36,241.35,0.2]
[1757900568332,31.96558016,241.36,241.35,0.9]
[1757900568658,64.60558016,241.36,241.35,0.9]
[1757900569352,68.74876875,241.36,241.35,0.9]
[1757900569532,65.96442171,241.36,241.35,0.9]
[1757900569735,68.74956176,241.36,241.35,0.9]
[1757900570540,16.38073406,241.36,241.35,0.9]
[1757900571049,17.86678172,241.36,241.35,0.9]
[1757900571434,21.24750784,241.36,241.35,0.9]
[1757900572756,19.63779865,241.36,241.35,5.04336026]
[1757900572959,19.63779865,241.36,241.35,0.9]
[1757900573145,21.12384631,241.36,241.35,0.9]
[1757900574167,21.12384631,241.36,241.35,5.04336026]
[1757900574168,2.78514005,241.36,241.35,5.04336026]
[1757900574338,26.0,241.38,241.35,5.04336026]
[1757900574543,2.7892049,241.37,241.35,5.04336026]
[1757900574838,3.28136111,241.37,241.36,0.7]
[1757900575028,2.7892049,241.37,241.36,4.84318859]
[1757900575227,2.7892049,241.37,241.36,4.85318859]
[1757900575442,2.7892049,241.37,241.36,0.71]
[1757900575851,2.7892049,241.37,241.36,4.85318859]
[1757900577332,2.7892049,241.37,241.36,6.33923625]
[1757900577957,42.84586705,241.41,241.36,4.85318859]
[1757900578249,2.78924548,241.4,241.36,4.85318859]
[1757900578453,2.78924548,241.39,241.37,0.71]
[1757900578754,2.78924548,241.38,241.37,0.71]
[1757900579131,2.78924548,241.38,241.37,4.85301694]
[1757900580929,2.78924548,241.38,241.37,6.3390646]
[1757900581137,2.78924548,241.38,241.37,4.85301694]
[1757900583266,39.59559401,241.41,241.37,15.2105593]
[1757900583563,2.78875593,241.4,241.38,0.71]
[1757900583768,42.95994021,241.41,241.38,0.71]
[1757900584058,2.78875578,241.4,241.38,0.71]
[1757900584243,39.59559401,241.41,241.39,4.14267368]
[1757900584558,2.78886297,241.4,241.36,1.48604766]
[1757900584754,2.78886297,241.39,241.35,0.2]
[1757900584946,2.78886297,241.38,241.36,0.71]
[1757900585145,13.59559401,241.39,241.37,0.71]
[1757900585352,2.78902933,241.38,241.37,0.71]
[1757900586045,13.59559401,241.39,241.37,0.71]
[1757900586433,39.59559401,241.37,241.35,0.2]
[1757900586647,17.87050086,241.36,241.35,0.2]
[1757900589648,18.41050086,241.36,241.35,0.2]
[1757900589858,28.52644531,241.36,241.35,0.2]
[1757900591484,34.76161505,241.36,241.35,0.91]
[1757900591646,34.76161505,241.36,241.35,0.2]
[1757900591965,34.76161505,241.36,241.35,0.91]
[1757900592544,49.30830957,241.36,241.35,0.2]
[1757900592941,53.99149816,241.36,241.35,0.2]
[1757900593544,49.30830957,241.36,241.35,0.2]
[1757900594487,53.45149816,241.36,241.35,0.2]
[1757900594689,49.30830957,241.36,241.35,0.2]
[1757900596054,49.30830957,241.36,241.35,0.91]
[1757900596376,48.35720906,241.36,241.35,0.91]
[1757900596578,48.35720906,241.36,241.35,5.05336026]
[1757900597570,48.35720906,241.36,241.35,0.91]
[1757900598083,48.35720906,241.36,241.35,5.05336026]
[1757900598265,48.35720906,241.36,241.35,0.91]
[1757900599789,48.35720906,241.36,241.35,5.05336026]
[1757900600186,49.30830957,241.36,241.35,5.05336026]
[1757900600376,49.30830957,241.36,241.35,4.34336026]
[1757900600784,49.30830957,241.36,241.35,0.2]
[1757900601089,86.05149816,241.36,241.35,0.2]
[1757900602194,86.59149816,241.36,241.35,0.2]
[1757900602888,86.05149816,241.36,241.35,0.2]
[1757900603201,86.59149816,241.36,241.35,0.2]
[1757900603699,86.05149816,241.36,241.35,0.2]
[1757900604278,86.59149816,241.36,241.35,0.2]
[1757900604495,86.05149816,241.36,241.35,0.2]
[1757900605794,81.90830957,241.36,241.35,0.2]
[1757900606801,86.05149816,241.36,241.35,0.2]
[1757900608286,89.53292322,241.36,241.35,0.2]
[1757900609066,53.45149816,241.36,241.35,0.2]
[1757900609277,86.59149816,241.36,241.35,0.2]
[1757900609478,86.05149816,241.36,241.35,0.2]
[1757900610278,53.45149816,241.36,241.35,0.2]
[1757900610479,86.05149816,241.36,241.35,0.2]
[1757900610892,86.03149816,241.36,241.35,0.2]
[1757900611098,60.57149816,241.36,241.35,0.2]
[1757900611399,64.05292322,241.36,241.35,0.2]
[1757900612478,43.73929765,241.33,241.32,0.06]
[1757900612678,80.35347556,241.33,241.32,0.06]
[1757900612988,80.64769377,241.33,241.32,0.06]
[1757900614280,76.50399013,241.33,241.32,0.77]
[1757900614477,43.92399013,241.33,241.32,0.77]
[1757900614789,42.97288962,241.33,241.32,0.77]
[1757900614983,42.97288962,241.33,241.32,4.91387535]
[1757900615770,3.37729561,241.33,241.32,4.91387535]
[1757900615974,2.78885919,241.33,241.32,4.91387535]
[1757900618187,17.33555371,241.33,241.32,0.77]
[1757900620585,21.47925735,241.33,241.32,0.06]
[1757900620788,39.59559401,241.31,241.3,0.06]
[1757900621088,39.59559401,241.31,241.23,0.2]
[1757900621089,13.59559401,241.27,241.23,0.2]
[1757900621275,40.54669452,241.24,241.23,0.2]
[1757900621480,40.54669452,241.24,241.23,0.9]
[1757900621481,43.33555371,241.24,241.23,0.9]
[1757900621879,43.33555371,241.24,241.23,0.2]
[1757900624301,28.78885919,241.24,241.23,0.9]
[1757900624492,28.78885919,241.24,241.23,5.04542138]
[1757900624493,26.0,241.24,241.23,5.04542138]
[1757900626392,40.54669452,241.24,241.23,0.2]
[1757900626911,43.33440915,241.24,241.23,0.2]
[1757900628613,43.33440915,241.24,241.23,0.9]
[1757900628983,16.38330864,241.24,241.23,0.9]
[1757900629186,17.33440915,241.24,241.23,5.04542138]
[1757900629402,17.33440915,241.24,241.23,0.2]
[1757900630007,17.33440915,241.24,241.23,0.9]
[1757900630516,16.38330864,241.24,241.23,0.9]
[1757900632101,16.38212699,241.24,241.23,0.9]
[1757900633017,3.48316623,241.31,241.23,12.21465396]
[1757900633194,2.78723019,241.3,241.29,0.95110051]
[1757900633396,28.78723019,241.3,241.29,1.65110051]
[1757900633589,2.78723019,241.3,241.29,4.84439056]
[1757900633795,39.62559401,241.35,241.29,5.79549107]
[1757900634005,39.62559401,241.35,241.3,1.65110051]
[1757900634307,39.62559401,241.35,241.29,4.14439056]
[1757900634308,39.62559401,241.35,241.31,0.7]
[1757900634510,40.57669452,241.35,241.31,0.7]
[1757900635232,39.62559401,241.35,241.31,0.7]
[1757900636111,40.57669452,241.35,241.31,0.7]
[1757900636516,1.63110051,241.34,241.28,5.09551102]
[1757900636696,0.95110051,241.34,241.28,5.09551102]
[1757900636897,0.95110051,241.34,241.29,0.69]
[1757900637094,0.95110051,241.33,241.3,0.69]
[1757900637298,40.57669452,241.35,241.31,0.69]
[1757900638109,40.57669452,241.35,241.31,4.83388765]
[1757900638305,41.25669452,241.35,241.31,4.14388765]
[1757900638514,0.95110051,241.34,241.29,4.83428633]
[1757900638815,0.95110051,241.33,241.3,0.69]
[1757900639518,13.59559401,241.31,241.27,4.14458942]
[1757900639907,13.59559401,241.31,241.28,0.69]
[1757900640594,13.59559401,241.31,241.27,4.14458942]
[1757900640595,14.54669452,241.31,241.27,4.14458942]
[1757900640795,0.95110051,241.3,241.27,4.14458942]
[1757900641596,0.95110051,241.28,241.23,0.2]
[1757900641906,14.54669452,241.29,241.24,0.69]
[1757900642113,14.54669452,241.29,241.23,4.34541079]
[1757900642114,0.95110051,241.29,241.25,0.69]
[1757900642901,0.95110051,241.29,241.23,4.34541079]
[1757900643104,14.54669452,241.28,241.23,4.34541079]
[1757900643305,0.95110051,241.27,241.23,0.89]
[1757900643505,0.95110051,241.24,241.23,0.2]